lending/lending_fUSD_20241212
["ID","MTS","AMOUNT","RATE_DAILY","PERIOD"]
[345115694,1734028247667,-1236.48473604,0.00021394,2]
[345115695,1734028247679,-5679.31979583,0.00021394,2]
[345115696,1734028247846,-132499.64440062,0.00021394,2]
[345115697,1734028247959,-265.858528,0.00021394,2]
[345115698,1734028247971,-265.01599282,0.00021394,2]
[345115700,1734028499906,-153.23,0.00010137,2]
[345115705,1734028803582,188.0,0.00010137,30]
[345115707,1734029156121,-450.0,0.00013,2]
[345115708,1734029156143,-153.39,0.00013699,2]
[345115709,1734029156165,-562.46496255,0.000149,2]
[345115710,1734029225281,-570.25430195,0.000149,2]
[345115711,1734029229315,-671.52620434,0.000149,2]
[345115712,1734029235138,-1852.06512721,0.000149,2]
[345115713,1734029235159,-166.66666667,0.000149,2]
[345115714,1734029235180,-500.0,0.00015,2]
[345115715,1734029235200,-150.1050144,0.00015,15]
[345115716,1734029235220,-2137.55851037,0.000154,2]
[345115717,1734029240083,-2104.67767422,0.000154,2]
[345115718,1734029249103,-444.76381541,0.000154,2]
[345115719,1734029249125,-152.90122955,0.00015635,2]
[345115720,1734029252093,-45.17877045,0.00015635,2]
[345115721,1734029252118,-344.36704576,0.00017,2]
[345115722,1734029253153,-205.63295424,0.00017,2]
[345115723,1734029253175,-155.1487353,0.00017973,2]
[345115725,1734029318599,249.23,0.00010137,2]
[345115727,1734029345089,-249.23,0.00016813,2]
[345115728,1734029345111,-284.38951938,0.00017883,2]
[345115729,1734029349096,-763.5012647,0.00017973,2]
[345115730,1734029349117,-250.0,0.00018135,2]
[345115731,1734029349138,-250.0,0.00018194,2]
[345115732,1734029349160,-200.0,0.00018207,2]
[345115733,1734029349180,-181.64,0.00018213,2]
[345115734,1734029349201,-1691.45,0.00018213,2]
[345115735,1734029349379,-156.68,0.00018215,2]
[345115736,1734029349402,-163.09,0.00018493,2]
[345115737,1734029349423,-1280.0,0.00018493,2]
[345115738,1734029349443,-1262.87,0.00018505,2]
[345115739,1734029349463,-639.0935853,0.00018505,2]
[345115740,1734029368342,-735.0664147,0.00018505,2]
[345115741,1734029368362,-850.0,0.00018522,2]
[345115742,1734029368384,-1008.84,0.00018523,2]
[345115743,1734029368405,-671.1,0.00018523,2]
[345115744,1734029368425,-1834.0857426,0.00018523,2]
[345115747,1734029395687,234.10582119,0.000154,2]
[345115748,1734029395709,3983.89417881,0.000154,2]
[345115749,1734029396420,842.36117819,0.000154,2]
[345115750,1734029396444,2953.63882181,0.000154,2]
[345115761,1734029431580,-300.0,0.00018522,2]
[345115762,1734029431596,-111.42129092,0.00018523,2]
[345115763,1734029431607,-609.46060652,0.00018523,2]
[345115764,1734029431619,-420.825,0.00018523,2]
[345115765,1734029431762,-3218.2154682,0.00018523,2]
[345115766,1734029431835,-3805.98189176,0.00018523,2]
[345115767,1734029431844,-2.55100844,0.00018523,2]
[345115768,1734029431856,-4728.20899156,0.00018523,2]
[345115769,1734029431865,-999.99,0.00018523,2]
[345115770,1734029431874,-299.99,0.00018523,4]
[345115771,1734029431884,-153.23,0.00018594,2]
[345115772,1734029431893,-621.31316185,0.00018709,2]
[345115773,1734029431903,-12876.08924659,0.0001871,2]
[345115774,1734029431915,-980.90075341,0.0001871,2]
[345115775,1734029431925,-3921.9684926,0.00018726,2]
[345115776,1734029431936,-1917.05719895,0.00018726,2]
[345115777,1734029431946,-170.07110895,0.00018727,2]
[345115778,1734029431957,-1184.67631391,0.00018727,2]
[345115790,1734029432215,-428.63632332,0.00018727,2]
[345115792,1734029432227,-22116.61625382,0.00018727,2]
[345115793,1734029432237,-2751.0,0.00018759,2]
[345115795,1734029432247,-1852.42,0.00018972,2]
[345115797,1734029432256,-295.5,0.00018983,2]
[345115798,1734029432266,-600.0,0.00019,2]
[345115799,1734029432276,-1280.0,0.00019178,2]
[345115800,1734029432285,-150.0,0.000192,2]
[345115801,1734029432295,-748.3725,0.00019277,2]
[345115802,1734029432304,-1494.47356091,0.00019338,2]
[345115811,1734029437593,-261.32,0.00018506,2]
[345115812,1734029437603,-3748.41923909,0.00019338,2]
[345115813,1734029437612,-757.45,0.00019357,2]
[345115814,1734029437622,-500.0,0.00019359,2]
[345115815,1734029437631,-757.45,0.00019362,2]
[345115816,1734029437641,-757.45,0.00019367,2]
[345115817,1734029437650,-757.45,0.00019372,2]
[345115818,1734029437660,-757.45,0.00019377,2]
[345115819,1734029437669,-245.8699142,0.00019382,2]
[345115820,1734029437697,-511.5800858,0.00019382,2]
[345115821,1734029437707,-757.45,0.00019387,2]
[345115822,1734029437717,-757.45,0.00019392,2]
[345115823,1734029437728,-757.45,0.00019398,2]
[345115824,1734029437737,-757.45,0.00019403,2]
[345115825,1734029437746,-757.45,0.00019408,2]
[345115826,1734029437756,-757.45,0.00019413,2]
[345115827,1734029437766,-531.26069329,0.00019418,2]
[345115828,1734029437884,-226.18930671,0.00019418,2]
[345115829,1734029437893,-757.45,0.00019423,2]
[345115830,1734029437903,-757.45,0.00019428,2]
[345115831,1734029437912,-93.17358753,0.00019433,2]
[345115832,1734029437963,-40.08685439,0.00019433,2]
[345115833,1734029437982,-624.18955808,0.00019433,2]
[345115834,1734029437991,-588.48190192,0.00019438,2]
[345115835,1734029438002,-168.96809808,0.00019438,2]
[345115836,1734029438012,-757.45,0.00019443,2]
[345115837,1734029438021,-757.45,0.00019449,2]
[345115838,1734029438030,-757.45,0.00019454,2]
[345115839,1734029438040,-218.4622,0.00019482,2]
[345115840,1734029438050,-1745.124,0.00019482,2]
[345115841,1734029438059,-1000.0,0.00019561,2]
[345115842,1734029438069,-300.0,0.00019577,2]
[345115843,1734029438078,-342.0,0.00019578,2]
[345115844,1734029438088,-310.4247,0.00019582,2]
[345115845,1734029438097,-6769.928,0.00019582,2]
[345115846,1734029438106,-758.4833,0.00019582,2]
[345115848,1734029438115,-264.5917,0.00019582,2]
[345115850,1734029438125,-2576.5567,0.00019582,2]
[345115852,1734029438135,-500.0,0.00019582,2]
[345115854,1734029438144,-502.27,0.000196,30]
[345115856,1734029438153,-12410.03623073,0.00019612,2]
[345115858,1734029438166,-589.11594604,0.00019612,2]
[345115860,1734029438176,-931.38,0.00019612,2]
[345115862,1734029438185,-200.0,0.0001964,2]
[345115864,1734029438195,-69383.74832656,0.00019682,2]
[345115867,1734029438207,-12652.55167344,0.00019682,2]
[345115868,1734029438216,-1501.28,0.00019711,2]
[345115870,1734029438226,-433.68,0.0001978,2]
[345115871,1734029438396,-1500.0,0.00019819,2]
[345115872,1734029438406,-12999.15217672,0.00019857,2]
[345115873,1734029438415,-1280.0,0.00019862,2]
[345115874,1734029438425,-169.81,0.00019918,2]
[345115875,1734029438435,-252.9137,0.0001995,2]
[345115876,1734029438445,-3000.0,0.0002,2]
[345115877,1734029438454,-3483.24942984,0.0002,5]
[345115881,1734029439643,-775.217336,0.0002,5]
[345115882,1734029439654,-809.13231,0.0002,5]
[345115883,1734029439665,-2252.04531344,0.0002,5]
[345115884,1734029439728,-1428.50840388,0.0002,5]
[345115885,1734029439804,-5045.0,0.0002,5]
[345115894,1734029443455,-1535.6450058,0.0002,5]
[345115896,1734029443466,-6573.88394151,0.0002,5]
[345115897,1734029443478,-3758.5021203,0.0002,5]
[345115898,1734029443487,-4577.29399514,0.00020102,2]
[345115900,1734029443592,-8421.85818158,0.00020102,2]
[345115902,1734029443602,-420.0,0.00020199,2]
[345115903,1734029443611,-1012.14,0.00020215,2]
[345115904,1734029443621,-2900.4909,0.0002022,2]
[345115905,1734029443631,-1000.0,0.0002022,2]
[345115906,1734029443641,-918.65,0.00020237,2]
[345115907,1734029443651,-220.0,0.0002028,2]
[345115908,1734029443660,-452.276,0.0002032,2]
[345115909,1734029443670,-12999.15217672,0.00020347,2]
[345115910,1734029443680,-1007.5,0.0002038,2]
[345115911,1734029443693,-746.54,0.0002038,2]
[345115912,1734029443703,-169.0,0.00020388,2]
[345115913,1734029443712,-150.0,0.00020399,2]
[345115914,1734029443723,-433.68,0.00020512,2]
[345115915,1734029443733,-176.41002954,0.00020536,2]
[345115916,1734029443743,-1280.0,0.00020546,2]
[345115917,1734029443752,-12999.15217672,0.00020592,2]
[345115918,1734029443764,-500.0,0.000207,7]
[345115919,1734029443774,-30428.0,0.00020759,2]
[345115920,1734029443783,-1100.0,0.000208,7]
[345115921,1734029443794,-12999.15217672,0.00020837,2]
[345115922,1734029443803,-1008.84,0.00020839,2]
[345115923,1734029443813,-289.86,0.00020849,2]
[345115924,1734029443823,-5000.0,0.00020868,2]
[345115925,1734029443833,-1700.0,0.000209,7]
[345115926,1734029443842,-1348.81772672,0.000209,2]
[345115927,1734029443852,-300.0,0.00020947,2]
[345115928,1734029443862,-3999.2590973,0.00020966,2]
[345115929,1734029443872,-48689.18910348,0.00020999,10]
[345115930,1734029443890,-5945.17725,0.00020999,10]
[345115932,1734029443921,-3189.506688,0.00020999,10]
[345115933,1734029443933,-589.445,0.00020999,10]
[345115934,1734029443944,-706.48931683,0.00020999,10]
[345115949,1734029445472,-339.84473752,0.00020999,10]
[345115950,1734029445484,-449.44,0.00020999,10]
[345115951,1734029445496,-2815.10692019,0.00020999,10]
[345115952,1734029445506,-650.0,0.00021,2]
[345115953,1734029445516,-50000.0,0.00021,120]
[345115954,1734029445525,-50000.0,0.00021,20]
[345115955,1734029445535,-40000.0,0.00021,7]
[345115956,1734029445545,-34799.32797279,0.00021,2]
[345115957,1734029445554,-1348.81772668,0.00021002,2]
[345115958,1734029445564,-1892.066,0.00021044,2]
[345115959,1734029445573,-177.369,0.00021044,2]
[345115960,1734029445582,-150.0,0.00021057,2]
[345115961,1734029445592,-12999.15217672,0.00021082,2]
[345115962,1734029445601,-1348.81772668,0.00021104,2]
[345115963,1734029445610,-1755.69789,0.0002118,2]
[345115964,1734029445621,-2300.0,0.000212,7]
[345115965,1734029445630,-1348.81772668,0.00021206,2]
[345115966,1734029445639,-500.0,0.00021223,2]
[345115967,1734029445649,-1280.0,0.0002123,2]
[345115968,1734029445659,-433.68,0.00021244,2]
[345115969,1734029445668,-63511.3040266,0.00021251,2]
[345115970,1734029445678,-63511.3040266,0.00021261,2]
[345115971,1734029445690,-200.0,0.00021262,2]
[345115972,1734029445699,-200.0,0.00021264,2]
[345115973,1734029445710,-63511.3040266,0.00021269,2]
[345115974,1734029445720,-63511.3040266,0.00021282,2]
[345115975,1734029445731,-200.0,0.00021283,2]
[345115976,1734029445740,-155.6,0.00021284,2]
[345115977,1734029445749,-63511.3040266,0.00021284,2]
[345115978,1734029445759,-63511.3040266,0.00021285,2]
[345115979,1734029445769,-2991.7119,0.00021294,2]
[345115981,1734029445780,-2665.2504,0.00021294,2]
[345115982,1734029445789,-34211.9129,0.00021294,2]
[345115983,1734029445799,-16853.0548,0.00021294,2]
[345115984,1734029445808,-1000.0,0.00021294,2]
[345115985,1734029445818,-184.0,0.00021294,2]
[345115986,1734029445827,-177.19366407,0.00021297,2]
[345115987,1734029445837,-2900.0,0.000213,7]
[345115988,1734029445846,-1348.81772668,0.00021308,2]
[345115989,1734029445856,-12999.15217672,0.00021327,2]
[345115990,1734029445866,-500.0,0.00021332,2]
[345115991,1734029445875,-428.15146824,0.00021352,2]
[345115992,1734029445895,-159.791776,0.00021373,2]
[345115994,1734029445904,-159.81564954,0.00021373,2]
[345115995,1734029445915,-159.81341099,0.00021373,2]
[345115996,1734029445924,-159.81341099,0.00021373,2]
[345115997,1734029445934,-299.6501456,0.00021373,2]
[345115998,1734029445943,-159.81163611,0.00021373,2]
[345115999,1734029445952,-500.0,0.00021373,2]
[345116000,1734029445961,-159.81341235,0.00021373,2]
[345116001,1734029445971,-9650.3647991,0.00021383,2]
[345116002,1734029445980,-155.6,0.00021384,2]
[345116003,1734029445989,-155.6,0.00021384,2]
[345116004,1734029445999,-155.6,0.0002139,2]
[345116005,1734029446008,-155.6,0.0002139,2]
[345116007,1734029446017,-155.6,0.0002139,2]
[345116008,1734029446026,-5415.15922019,0.00021393,2]
[345116009,1734029446036,-1819.0,0.00021394,2]
[345116010,1734029446045,-20000.0,0.00021394,2]
[345116011,1734029446056,-295785.75310231,0.00021394,2]
[345116012,1734029446543,-6763.8565941,0.00021394,2]
[345116013,1734029446588,-699.0854,0.00021394,2]
[345116014,1734029446600,-81625.5198114,0.00021394,2]
[345116015,1734029446616,-8489.00720776,0.00021394,2]
[345116016,1734029446627,-12058.93925,0.00021394,2]
[345116017,1734029446638,-5675.57388188,0.00021394,2]
[345116018,1734029446650,-425.56374791,0.00021394,2]
[345116019,1734029446751,-40223.11434252,0.00021394,2]
[345116020,1734029446793,-1171.4537785,0.00021394,2]
[345116021,1734029446804,-1708.08000001,0.00021394,2]
[345116022,1734029678904,2000.0,0.0002,90]
[345116024,1734030285662,155.47,0.00010137,2]
[345116029,1734030357107,-160.39,0.00013699,2]
[345116030,1734030357130,-188.45,0.00015746,2]
[345116031,1734030357151,-150.0,0.00017253,2]
[345116032,1734030357175,-86.3846109,0.00018194,2]
[345116033,1734030429112,-320.78422838,0.00015646,2]
[345116034,1734030429136,-320.78422836,0.000164,2]
[345116035,1734030429158,-320.78422836,0.00017153,2]
[345116036,1734030429178,-150.0,0.00018064,2]
[345116037,1734030429198,-132.15466336,0.00018099,2]
[345116038,1734030440086,-63.83533664,0.00018099,2]
[345116039,1734030440112,-235.50850334,0.00018132,2]
[345116049,1734030545109,-906.3,0.0001606,2]
[345116050,1734030545130,-449.59,0.00017878,2]
[345116051,1734030545152,-200.0,0.00017923,2]
[345116052,1734030545175,-300.0,0.00017923,2]
[345116053,1734030545195,-649.49211915,0.00018094,2]
[345116054,1734030545218,-200.4562166,0.00018104,2]
[345116055,1734030554566,188.45,0.00014318,2]
[345116058,1734030582585,1000.0,0.00017898,2]
[345116059,1734030585822,548.94,0.00017898,2]
[345116060,1734030604820,450.0,0.00013,2]
[345116061,1734030605940,500.0,0.00015,2]
[345116062,1734030606979,550.0,0.00017,2]
[345116063,1734030619366,1605.56,0.00017855,2]
[345116075,1734030632096,-324.74605957,0.00018014,2]
[345116076,1734030632105,-324.74605957,0.00018017,2]
[345116077,1734030632116,-785.8737834,0.00018104,2]
[345116078,1734030632127,-200.0,0.00018109,2]
[345116079,1734030632136,-800.0,0.0001811,2]
[345116080,1734030632148,-996.96,0.00018114,2]
[345116081,1734030632158,-477.15,0.00018117,30]
[345116082,1734030632167,-987.12,0.00018128,2]
[345116083,1734030632176,-984.14,0.00018132,2]
[345116084,1734030632185,-800.0,0.00018192,2]
[345116085,1734030632196,-81.5153891,0.00018194,2]
[345116086,1734030632207,-250.0,0.00018212,2]
[345116087,1734030632216,-4032.57,0.00018224,2]
[345116088,1734030632226,-1008.61,0.00018227,2]
[345116089,1734030632237,-1565.66,0.00018232,2]
[345116090,1734030632246,-1500.0,0.00018232,2]
[345116091,1734030632255,-3226.84,0.00018232,2]
[345116092,1734030632265,-250.0,0.00018297,2]
[345116093,1734030632275,-981.63,0.00018297,2]
[345116094,1734030632284,-250.0,0.00018302,2]
[345116095,1734030632294,-906.3,0.00018324,2]
[345116096,1734030632303,-559.25,0.00018352,2]
[345116097,1734030632313,-3581.66,0.00018352,2]
[345116098,1734030632322,-449.59,0.0001854,2]
[345116099,1734030632331,-160.11,0.00018545,2]
[345116100,1734030632340,-200.0,0.00018592,2]
[345116101,1734030632351,-1460.56,0.00018655,2]
[345116102,1734030632361,-663.71,0.00018717,2]
[345116103,1734030632370,-17889.0,0.00018798,2]
[345116104,1734030632379,-23900.0,0.00018918,2]
[345116105,1734030632388,-1442.77,0.00018954,2]
[345116106,1734030632397,-600.0,0.00019,2]
[345116107,1734030632406,-2569.62,0.00019038,2]
[345116108,1734030632416,-372.18027567,0.000191,2]
[345116109,1734030632425,-449.59,0.00019201,2]
[345116111,1734030632435,-150.0,0.000193,2]
[345116113,1734030632444,-9149.1993,0.00019382,2]
[345116115,1734030632453,-1378.9849,0.00019452,2]
[345116117,1734030632463,-1092.5270432,0.00019481,5]
[345116119,1734030632472,-1128.26156581,0.00019481,5]
[345116121,1734030632483,-1803.49247274,0.00019482,3]
[345116123,1734030632492,-1803.49247275,0.00019482,3]
[345116125,1734030632502,-24669.4515,0.00019482,2]
[345116127,1734030632511,-798.771,0.00019482,2]
[345116128,1734030632521,-13052.0589,0.00019482,2]
[345116130,1734030632531,-6926.19445032,0.00019482,2]
[345116132,1734030632570,-3072.31864968,0.00019482,2]
[345116133,1734030632580,-1000.0,0.00019482,2]
[345116134,1734030632589,-2599.83043538,0.00019482,2]
[345116135,1734030632598,-674.40886334,0.00019482,2]
[345116136,1734030632607,-1201.65232629,0.00019581,5]
[345116137,1734030632617,-1092.5270432,0.00019581,5]
[345116138,1734030632626,-1092.52704319,0.00019581,5]
[345116139,1734030632635,-1128.26156581,0.00019581,5]
[345116140,1734030632645,-760.8448,0.00019582,2]
[345116141,1734030632654,-261433.7813,0.00019582,2]
[345116142,1734030632664,-21008.6375,0.00019582,2]
[345116143,1734030632673,-500.0,0.00019582,2]
[345116144,1734030632682,-1000.0,0.00019582,2]
[345116145,1734030632692,-4421.2967,0.00019582,2]
[345116146,1734030632701,-388.7,0.00019633,2]
[345116147,1734030632711,-1026.25,0.00019683,2]
[345116148,1734030632720,-2599.83043534,0.00019741,2]
[345116149,1734030632731,-674.40886334,0.00019741,2]
[345116150,1734030632740,-449.59,0.00019863,2]
[345116151,1734030632749,-3000.0,0.0002,2]
[345116152,1734030632759,-150.0,0.0002,2]
[345116153,1734030632769,-5000.89050787,0.0002,3]
[345116154,1734030632778,-2599.83043534,0.00020001,2]
[345116155,1734030632787,-674.40886334,0.00020001,2]
[345116156,1734030632797,-1000.0,0.00020135,2]
[345116157,1734030632806,-4163.0,0.00020136,2]
[345116158,1734030632816,-2599.83043534,0.0002026,2]
[345116159,1734030632825,-674.40886334,0.0002026,2]
[345116160,1734030632834,-453.503,0.0002032,2]
[345116161,1734030632844,-726.41,0.00020444,2]
[345116162,1734030632853,-435.83,0.00020444,2]
[345116163,1734030632862,-2599.83043534,0.0002052,2]
[345116164,1734030632873,-674.40886334,0.0002052,2]
[345116165,1734030632883,-449.59,0.00020524,2]
[345116166,1734030632893,-906.3,0.00020587,2]
[345116167,1734030632905,-1300.0,0.000207,7]
[345116168,1734030632915,-477.15,0.00020701,30]
[345116169,1734030632925,-1201.65232629,0.00020758,5]
[345116170,1734030632934,-166.68,0.0002077,2]
[345116171,1734030632944,-2599.83043534,0.00020779,2]
[345116172,1734030632953,-674.40886334,0.00020779,2]
[345116173,1734030632964,-2700.0,0.000208,7]
[345116174,1734030632974,-4100.0,0.000209,7]
[345116175,1734030632985,-781.59,0.00020932,2]
[345116176,1734030632995,-1999.6295487,0.00020966,2]
[345116177,1734030633008,-1002.39,0.00020968,2]
[345116178,1734030633017,-2604.0,0.00021,2]
[345116179,1734030633026,-1945.156,0.00021,2]
[345116180,1734030633036,-10000.0,0.00021,5]
[345116181,1734030633047,-3876.5,0.00021,2]
[345116182,1734030633057,-650.0,0.00021,2]
[345116183,1734030633066,-150.91858,0.00021002,2]
[345116184,1734030633076,-2599.83043534,0.00021039,2]
[345116185,1734030633087,-674.40886334,0.00021039,2]
[345116186,1734030633097,-663.71,0.00021057,2]
[345116187,1734030633107,-1963.08158,0.0002118,2]
[345116188,1734030633117,-18075.87,0.000212,6]
[345116189,1734030633126,-11497.48,0.000212,6]
[345116190,1734030633135,-5400.0,0.000212,7]
[345116191,1734030633145,-500.0,0.00021222,2]
[345116192,1734030633155,-500.0,0.00021222,2]
[345116193,1734030633164,-500.0,0.00021222,2]
[345116194,1734030633174,-500.0,0.00021223,2]
[345116195,1734030633184,-500.0,0.00021223,2]
[345116196,1734030633193,-500.0,0.00021223,2]
[345116197,1734030633203,-500.0,0.00021223,2]
[345116198,1734030633213,-500.0,0.00021223,2]
[345116199,1734030633223,-500.0,0.00021223,2]
[345116200,1734030633233,-500.0,0.00021223,2]
[345116201,1734030633243,-29645.81988676,0.00021243,2]
[345116202,1734030633253,-2395.3769042,0.00021243,2]
[345116203,1734030633262,-2763.38988491,0.00021243,2]
[345116204,1734030633272,-2395.3769042,0.00021244,2]
[345116205,1734030633282,-29645.81988676,0.00021246,2]
[345116206,1734030633292,-2763.38988491,0.00021248,2]
[345116207,1734030633302,-2395.3769042,0.00021249,2]
[345116208,1734030633312,-2763.38988491,0.00021256,2]
[345116209,1734030633322,-2475.62698675,0.00021257,2]
[345116210,1734030633332,-200.0,0.00021257,2]
[345116211,1734030633341,-10853.82555635,0.00021258,2]
[345116213,1734030637651,-18791.99433041,0.00021258,2]
[345116215,1734030637661,-2395.3769042,0.00021259,2]
[345116216,1734030637670,-2475.62698675,0.00021259,2]
[345116218,1734030637679,-561.55717036,0.00021261,2]
[345116220,1734030637690,-21658.16232061,0.00021261,2]
[345116221,1734030637701,-7987.65756615,0.00021261,2]
[345116222,1734030637711,-200.0,0.00021263,2]
[345116223,1734030637721,-2395.3769042,0.00021266,2]
[345116224,1734030637730,-2763.38988491,0.00021268,2]
[345116225,1734030637747,-13689.1924251,0.00021271,2]
[345116226,1734030637763,-15956.62746166,0.00021271,2]
[345116227,1734030637772,-696.15503314,0.00021271,2]
[345116228,1734030637786,-1779.47195361,0.00021271,2]
[345116229,1734030637795,-2475.62698675,0.00021272,2]
[345116230,1734030637804,-561.55717036,0.00021272,2]
[345116231,1734030637813,-561.55717036,0.00021273,2]
[345116232,1734030637823,-2763.38988491,0.00021274,2]
[345116233,1734030637831,-561.55717036,0.00021274,2]
[345116234,1734030637841,-2475.62698675,0.00021276,2]
[345116235,1734030637850,-200.0,0.00021279,2]
[345116236,1734030637859,-2475.62698675,0.00021281,2]
[345116237,1734030637868,-1000.0,0.00021287,2]
[345116238,1734030637877,-1000.0,0.00021287,2]
[345116239,1734030637888,-1000.0,0.00021287,2]
[345116240,1734030637897,-1000.0,0.00021287,2]
[345116241,1734030637906,-1000.0,0.00021287,2]
[345116242,1734030637915,-1000.0,0.00021287,2]
[345116243,1734030637925,-1000.0,0.00021287,2]
[345116244,1734030637934,-1000.0,0.00021287,2]
[345116245,1734030637943,-1000.0,0.00021287,2]
[345116246,1734030637952,-1000.0,0.00021287,2]
[345116247,1734030637962,-1000.0,0.00021287,2]
[345116248,1734030637971,-1000.0,0.00021287,2]
[345116249,1734030637980,-1000.0,0.00021287,2]
[345116250,1734030637994,-1000.0,0.00021287,2]
[345116251,1734030638006,-1000.0,0.00021287,2]
[345116252,1734030638016,-1000.0,0.00021287,2]
[345116253,1734030638030,-967.0971,0.00021287,2]
[345116254,1734030638038,-2395.3769042,0.00021288,2]
[345116255,1734030638047,-200.0,0.00021292,2]
[345116256,1734030638057,-561.55717036,0.00021293,2]
[345116257,1734030638066,-2130.46186249,0.00021294,2]
[345116258,1734030638083,-3361.5,0.00021294,2]
[345116259,1734030638094,-317.80760247,0.00021294,2]
[345116260,1734030638105,-4785.1663968,0.00021294,2]
[345116261,1734030638117,-4816.65016,0.00021294,2]
[345116262,1734030638128,-1821.60984932,0.00021294,2]
[345116264,1734030638139,-2455.92192892,0.00021294,2]
[345116267,1734030638149,-220.0,0.00021294,2]
[345116269,1734030638158,-218.17599639,0.00021294,2]
[345116271,1734030638168,-1475.78684569,0.00021294,2]
[345116274,1734030638187,-302.73243,0.00021294,2]
[345116275,1734030638202,-5284.02656,0.00021294,2]
[345116277,1734030639893,-225.78692016,0.00019482,2]
[345116278,1734030639903,-581.99226984,0.00021294,2]
[345116279,1734030639915,-3397.96884,0.00021294,2]
[345116280,1734030640052,-3618.11718478,0.00021294,2]
[345116281,1734030640064,-14985.19575645,0.00021294,2]
[345116282,1734030640076,-561.55717036,0.00021295,2]
[345116283,1734030640088,-2599.83043534,0.00021298,2]
[345116284,1734030640097,-674.40886334,0.00021298,2]
[345116285,1734030640105,-2763.38988491,0.00021299,2]
[345116286,1734030640115,-177.19366407,0.000213,2]
[345116287,1734030640124,-158.0,0.000213,5]
[345116288,1734030640133,-158.0,0.000213,5]
[345116289,1734030640142,-6800.0,0.000213,7]
[345116290,1734030640152,-500.0,0.00021373,2]
[345116291,1734030640161,-155.6,0.00021374,2]
[345116292,1734030640171,-166.85348503,0.00021379,2]
[345116293,1734030640181,-25056.92343279,0.0002138,2]
[345116294,1734030640192,-718.89000003,0.0002138,2]
[345116295,1734030640204,-4708.761,0.0002138,2]
[345116308,1734030643537,-807.029992,0.0002138,2]
[345116315,1734030645796,-225.78692,0.00019605,2]
[345116316,1734030645806,-9788.81200716,0.0002138,2]
[345116317,1734030645815,-10869.7441793,0.00021384,2]
[345116318,1734030645825,-3646.8298391,0.00021385,2]
[345116319,1734030645834,-155.6,0.0002139,2]
[345116320,1734030645844,-155.6,0.0002139,2]
[345116321,1734030645854,-155.6,0.0002139,2]
[345116322,1734030645864,-201.14215378,0.00021393,5]
[345116323,1734030645874,-219.19933799,0.00021394,2]
[345116324,1734030645886,-175477.56508941,0.00021394,2]
[345116325,1734030645896,-200.0,0.00021394,2]
[345116326,1734030645905,-200.0,0.00021394,2]
[345116327,1734030645914,-2989.91440938,0.00021394,2]
[345116328,1734030645923,-2888.0,0.00021399,2]
[345116329,1734030645932,-1763.0,0.00021399,2]
[345116330,1734030645942,-156519.80295139,0.000214,3]
[345116331,1734030646253,-278.35610959,0.000214,3]
[345116332,1734030646265,-504.148278,0.000214,3]
[345116333,1734030646276,-1762.874965,0.000214,3]
[345116334,1734030646287,-66870.00004,0.000214,3]
[345116335,1734030646298,-296.75402,0.000214,3]
[345116336,1734030646380,-2416.26293482,0.000214,3]
[345116345,1734030646639,-3594.02297738,0.000214,3]
[345116346,1734030646651,-4033.59139,0.000214,3]
[345116347,1734030646662,-412.81001,0.000214,3]
[345116348,1734030664449,266.0,0.00011,2]
[345116349,1734031281418,-182.46542582,0.00017798,2]
[345116350,1734031281440,-1500.0,0.00017898,2]
[345116351,1734031281462,-980.36,0.00017898,2]
[345116352,1734031281484,-991.41,0.00017898,2]
[345116353,1734031281505,-1019.01,0.00017898,2]
[345116354,1734031281526,-988.28,0.00017898,2]
[345116355,1734031281548,-1017.65,0.00017898,2]